{"text_format":"1","workbook":"xlsx","n_sheets":1,"sheets":["Biotop- und Artenschutz"],"not_rendered":{"charts":0,"images":0,"macros":1,"external_links":0,"defined_names":1,"comments":1,"pivot_tables":0},"unopened":[],"bounds":{"document_bytes":16777216,"sheet_cells":100000,"rows_first":2000,"rows_last":500,"rows_between":2000,"halvings":0,"cell_chars":16384,"cell_head_chars":4096},"cells_cut":0,"cells_raw":0,"read":"whole","date_system":"1900"}

{"sheet":"Biotop- und Artenschutz","index":0,"n_rows":106,"n_cols":24,"rows_kept":106,"cut":false,"hidden":false,"merged":[[68,7,68,8],[68,12,68,16],[68,17,68,18],[40,15,40,16],[42,15,42,16],[44,15,44,16],[40,17,40,18],[42,17,42,18],[44,17,44,18],[46,17,46,18],[48,17,48,18],[36,6,36,7],[36,16,36,17],[39,15,39,16],[28,15,28,18],[18,11,18,18],[7,7,7,8],[32,15,32,18],[34,5,34,8],[34,15,34,18],[28,5,28,8],[39,7,39,8],[30,5,30,8],[30,15,30,18],[32,5,32,8],[24,4,24,5],[24,7,24,8],[18,1,18,8],[24,14,24,15],[24,17,24,18],[39,17,39,18],[39,2,39,4],[39,5,39,6],[39,12,39,14],[3,6,3,8],[4,3,4,8],[3,16,3,18],[11,1,11,6],[12,1,12,6],[13,1,13,6],[14,1,14,6],[15,1,15,6],[16,1,16,6],[9,1,9,6],[10,1,10,6],[4,13,4,18],[107,6,107,8],[40,5,40,6],[81,4,81,7],[105,2,105,4],[98,2,98,8],[93,2,93,4],[91,2,91,4],[92,2,92,4],[44,5,44,6],[97,2,97,8],[85,2,85,8],[89,2,90,4],[79,2,79,4],[79,5,79,8],[40,7,40,8],[42,7,42,8],[44,7,44,8],[46,7,46,8],[48,7,48,8],[40,2,40,4],[43,5,43,8],[54,1,54,5],[105,12,105,14],[105,16,105,18],[42,5,42,6],[77,2,78,8],[51,15,51,16],[47,15,47,16],[48,15,48,16],[49,5,49,6],[50,5,50,6],[51,5,51,6],[76,2,76,8],[81,14,81,17],[77,12,78,18],[75,2,75,8],[76,12,76,18],[49,15,49,16],[50,7,50,8],[54,7,54,8],[50,17,50,18],[54,17,54,18],[47,5,47,6],[48,5,48,6],[46,15,46,16],[79,15,79,18],[83,12,100,18],[42,12,43,14],[43,15,43,16],[44,12,45,14],[45,15,45,16],[46,12,47,14],[48,12,49,14],[50,12,51,14],[54,11,54,16],[79,12,79,14],[82,12,82,18],[50,15,50,16],[75,12,75,18],[63,12,63,16],[63,17,63,18],[64,12,64,16],[64,17,64,18],[65,12,65,16],[65,17,65,18],[66,12,66,16],[66,17,66,18],[67,12,67,16],[67,17,67,18],[42,2,43,4],[44,2,45,4],[45,5,45,6],[46,2,47,4],[48,2,49,4],[50,2,51,4],[46,5,46,6],[73,2,73,8],[63,2,63,6],[63,7,63,8],[64,2,64,6],[64,7,64,8],[65,2,65,6],[65,7,65,8],[66,2,66,6],[66,7,66,8],[67,2,67,6],[67,7,67,8],[68,2,68,6]]}
[null,"    Sonstige Maßnahmen des Biotop- und Artenschutzes"]
[]
[]
[null,"  zum Antrag vom",null,null,null,null,null,null,null,null,null,"  zum Verwendungsnachweis vom"]
[null,"  Antragsteller",null,null,null,null,null,null,null,null,null,"  Antragsteller",null,{"$f":"IF(ISBLANK(D5),\" \",D5)","v":" "}]
[]
[]
[null,null,null,null,null,null,null,"bitte ankreuzen",null,null,null,null,null,null,null,"ja",null,"nein"]
[]
[null,"  Nr. 2.1.3.2 PKW-RL  Beseitigung unerwünschter",null,null,null,null,null,null,0.8,null,null,null,{"$f":"IF($H$10=\"x\",\"Nr. 2.1.3.2     durchgeführt?\",\"\")","v":""}]
[null,"                                    Bestockung bis 15 Jahre"]
[null,"  Nr. 2.1.3.3 PKW-RL  Pflege von Waldrändern auf",null,null,null,null,null,null,0.8,null,null,null,{"$f":"IF($H$12=\"x\",\"Nr. 2.1.3.3     durchgeführt?\",\"\")","v":""}]
[null,"                                    einer Tiefe von bis zu 15 m"]
[null,"  Nr. 2.1.3.4 PKW-RL  sonstige Maßnahmen des ",null,null,null,null,null,null,0.8,null,null,null,{"$f":"IF($H$14=\"x\",\"Nr. 2.1.3.4     durchgeführt?\",\"\")","v":""}]
[null,"                                    Biotop- und Artenschutzes"]
[null,"  Nr. 2.1.3.5 PKW-RL  Einbringen von Solitären und ",null,null,null,null,null,null,0.8,null,null,null,{"$f":"IF($H$16=\"x\",\"Nr. 2.1.3.5     durchgeführt?\",\"\")","v":""}]
[null,"                                    seltenen heimischen Bäumen"]
[]
[]
[null,"  I. ANTRAGSDATEN",null,null,null,null,null,null,null,null,null,"  I. VERWENDUNGSNACHWEISDATEN"]
[null,"  (Art, Ort, Umfang, Durchf.-Zeitraum, Flächenermittlungsverfahren)",null,null,null,null,null,null,null,null,null,"  (Art, Ort, Umfang, Durchf.-Zeitraum, Flächenermittlungsverfahren)"]
[]
[null,null,null,null,null,null,null,null,null,null,null,null,null,null,null,null,null,null,null,null,null,{"$f":"O25>=E25","v":true},{"$f":"R25<=H25","v":true}]
[null,null,null,null,null,null,null,null,null,null,null,null,null,null,{"$f":"IF(V23=FALSE,\"Abweichung begründen\",\"\")","v":""},null,null,null,{"$f":"IF(W23=FALSE,\"Abweichung begründen\",\"\")","v":""}]
[null,"  Durchf.-Zeitraum von",null,null,null,null,"bis …",null,null,null,null,"  Durchf.-Zeitraum von",null,null,null,null,"bis …"]
[]
[null,null,null,null,null,null,null,null,null,null,null,"  Durchführung wie geplant",null,null,null,null,"  (ja = J, nein = N)"]
[]
[null,"  Gemarkung",null,null,null,null,null,null,null,null,null,"  Gemarkung",null,null,null,{"$f":"IF(ISBLANK(F29),\" \",\nIF(P27=\"j\",F29,\nIF(P27=\"t\",F29,\" \")))","v":" "}]
[]
[null,"  Flur / Flurstück",null,null,null,null,null,null,null,null,null,"  Flur / Flurstück",null,null,null,{"$f":"IF(ISBLANK(F31),\" \",\nIF(P27=\"j\",F31,\nIF(P27=\"t\",F31,\" \")))","v":" "}]
[]
[null,"  Unterabteilung",null,null,null,null,null,null,null,null,null,"  Unterabteilung",null,null,null,{"$f":"IF(ISBLANK(F33),\" \",\nIF(P27=\"j\",F33,\nIF(P27=\"t\",F33,\" \")))","v":" "}]
[]
[null,"  Flächenermittlungsverfahren",null,null,null,null,null,null,null,null,null,"  Flächenermittlungsverfahren",null,null,null,{"$f":"IF(ISBLANK(F35),\" \",\nIF(P27=\"j\",F35,\nIF(P27=\"t\",F35,\" \")))","v":" "}]
[]
[null,"  Flächengröße",null,null,null,null,null,null,"  in ha",null,null,"  Flächengröße",null,null,null,null,{"$f":"IF(P27=\"J\",G37,IF(P27=\"T\",G37,\" \"))","v":" "},null,"  in ha"]
[]
[]
[null,null,"Geplante Maßnahmen:",null,null,"Ausg. in EUR",null,"Zuwendung",null,null,null,null,"Aufstellung Ausgaben:",null,null,"Ausg. in EUR",null,"Zuwendung"]
[null,null,"(ggf. auf gesondertem Blatt näher beschreiben)",null,null,"(ohne MwSt.)",null,"in EUR",null,null,null,null,null,null,null,"(ohne MwSt.)",null,"in EUR"]
[]
[null,"1.",null,null,null,null,null,{"$f":"F43*0.8","v":0},null,null,null,"1.",{"$f":"IF(ISBLANK(C43),\" \",IF(P27=\"J\",C43,IF(P27=\"T\",C43,\" \")))","v":" "},null,null,{"$f":"IF(ISBLANK(F43),\" \",IF($P$27=\"J\",F43,IF($P$27=\"T\",F43,\" \")))","v":" "},null,{"$f":"IF(P43<>\" \",P43*0.8,\"\")","v":""},null,null,null,null,null,{"$f":"IF(P43=\" \",0,P43*S43)","v":0}]
[]
[null,"2.",null,null,null,null,null,{"$f":"F45*0.8","v":0},null,null,null,"2.",{"$f":"IF(ISBLANK(C45),\" \",IF(P29=\"J\",C45,IF(P29=\"T\",C45,\" \")))","v":" "},null,null," ",null,{"$f":"IF(P45<>\" \",P45*0.8,\"\")","v":""},null,null,null,null,null,0]
[]
[null,"3.",null,null,null,null,null,{"$f":"F47*0.8","v":0},null,null,null,"3.",{"$f":"IF(ISBLANK(C47),\" \",IF(P31=\"J\",C47,IF(P31=\"T\",C47,\" \")))","v":" "},null,null," ",null,{"$f":"IF(P47<>\" \",P47*0.8,\"\")","v":""},null,null,null,null,null,0]
[]
[null,"4.",null,null,null,null,null,{"$f":"F49*0.8","v":0},null,null,null,"4.",{"$f":"IF(ISBLANK(C49),\" \",IF(P33=\"J\",C49,IF(P33=\"T\",C49,\" \")))","v":" "},null,null,{"$f":"IF(ISBLANK(F49),\" \",IF($P$27=\"J\",F49,IF($P$27=\"T\",F49,\" \")))","v":" "},null,{"$f":"IF(P49<>\" \",P49*0.8,\"\")","v":""}]
[null,null,null,null,null,null,null,null,null,null,null,null,null,null,null," ",null,null,null,null,null,null,null,0]
[null,"5.",null,null,null,null,null,{"$f":"F51*0.8","v":0},null,null,null,"5.",{"$f":"IF(ISBLANK(C51),\" \",IF(P35=\"J\",C51,IF(P35=\"T\",C51,\" \")))","v":" "},null,null,{"$f":"IF(ISBLANK(F51),\" \",IF($P$27=\"J\",F51,IF($P$27=\"T\",F51,\" \")))","v":" "},null,{"$f":"IF(P51<>\" \",P51*0.8,\"\")","v":""}]
[null,null,null,null,null,null,null,null,null,null,null,null,null,null,null," ",null,null,null,null,null,null,null,0]
[]
[]
[null,"      Gesamtförderbetrag in EUR:",null,null,null,null,null,{"$f":"SUM(H43:H52)","v":0},null,null,null,"   Tatsächlicher  Förderbetrag in EUR",null,null,null,null,null,{"$f":"IF(H55=\"\",\"\",MIN(H55,SUM(R43:S52)))","v":0}," EUR"]
[]
[]
[]
[]
[]
[]
[null,"  Nur bei FBG-Anträgen: beteiligte Waldbesitzer",null,null,null,null,null,null,"EUR",null,null,"  Nur bei FBG-Anträgen: beteiligte Waldbesitzer",null,null,null,null,null,null,"EUR"]
[]
[]
[null,null,null,null,null,null,null,null,null,null,null,null,{"$f":"IF(P27=\"J\",C65,\"\")","v":""},null,null,null,null,{"$f":"IF(P27=\"J\",H65,\"\")","v":""}]
[null,null,null,null,null,null,null,null,null,null,null,null,{"$f":"IF(P28=\"J\",C66,\"\")","v":""},null,null,null,null,{"$f":"IF(P28=\"J\",H66,\"\")","v":""}]
[null,null,null,null,null,null,null,null,null,null,null,null,"",null,null,null,null,""]
[null,null,null,null,null,null,null,null,null,null,null,null,"",null,null,null,null,""]
[null,null,null,null,null,null,null,null,null,null,null,null,"",null,null,null,null,""]
[]
[]
[]
[null," II.  STELLUNGNAHME DER LEITUNG DES FBB",null,null,null,null,null,null,null,null,null," II.  STELLUNGNAHME DER LEITUNG DES FBB"]
[null,null,"Fachliche Stellungnahme,\nfalls Planung ohne forstfachlich qualifizierte Person erfolgte, \noder Name der qualifizierten Person:",null,null,null,null,null,null,null,null,null,"Fachliche Stellungnahme (falls Abweichung)"]
[]
[]
[]
[null,null,"Das beantragte Vorhaben wird von mir für forstfachlich notwendig und zweckmäßig gehalten.",null,null,null,null,null,null,null,null,null,{"$f":"IF(ISBLANK(P27),\" \",IF(P27=\"J\",\"Die Änderung des Vorhabens wird von mir für forstfachlich notwendig und zweckmäßig gehalten.\",\n                                                   IF(#REF!=\"T\",\"Die Änderung des Vorhabens wird von mir für forstfachlich notwendig und zweckmäßig gehalten.\",\" \")))","v":" "}]
[]
[]
[null,null,"Ort, Datum",null,null,null,null,null,"Name und Unterschrift d. FBB",null,null,null,"Ort, Datum",null,null,null,null,null,"Name und Unterschrift d. FBB"]
[]
[null,null,"III. Prüfung der bewilligenden Stelle",null,null,null,null,null,null,null,null,null,"III.  Bemerkungen"]
[]
[]
[null,null,"III.1.    Doppelförderung: Ist das Vorhaben eine..."]
[]
[null,null,"  • Ausgleichsmaßnahme?",null,null,null,"  ja",null,"  nein"]
[]
[null,null,"  • Maßnahme im Rahmen eines \n     Ökokontos?",null,null,null,"  ja",null,"  nein"]
[]
[null,null,"  • Flächen wurden zwecks ",null,null,null,"  ja",null,"  nein"]
[null,null,"     Naturschutz dem Zuw-empf."]
[null,null,"     unentgeltlich übertragen?"]
[null,null,"  • FöNa-Maßnahme?",null,null,null,"  ja",null,"  nein"]
[]
[]
[null,null,"III.2.    FBG-Anträge: "]
[null,null,"Sind die Besitzer aller beantragten Flächen mit diesen \nFlächen Mitglieder dieser FBG?"]
[null,null,null,null,null,null,"  ja",null,"  nein"]
[]
[]
[]
[null,"  Folgende Belege sind beigefügt:",null,null,null,null,null,null,null,null,null,"  Folgende Belege sind beigefügt:"]
[]
[null,null,"Karte  (Maßstab 1 : 25.000)",null,null,null,null,null,null,null,null,null,"Lieferschein"]